fUST/lending_fUST_20240401
["ID","MTS","AMOUNT","RATE_DAILY","PERIOD"]
[321147235,1711909845501,-500.0,0.00076712,120]
[321147236,1711909845511,-501.15504627,0.00076712,120]
[321147239,1711909845520,-625.02350808,0.00076712,120]
[321147240,1711909845530,-500.36656546,0.00076712,120]
[321147242,1711909845539,-500.0,0.00076712,120]
[321147244,1711909845549,-500.0,0.00076712,120]
[321147246,1711909845558,-500.0,0.00076712,120]
[321147249,1711909845568,-500.0,0.00076712,120]
[321147251,1711909845578,-500.0,0.00076712,120]
[321147253,1711909845587,-500.0,0.00076712,120]
[321147254,1711909845596,-500.0,0.00076712,120]
[321147256,1711909845605,-500.0,0.00076712,120]
[321147258,1711909845615,-500.0,0.00076712,120]
[321147260,1711909845624,-500.0,0.00076712,120]
[321147262,1711909845634,-500.0,0.00076712,120]
[321147264,1711909845643,-500.0,0.00076712,120]
[321147267,1711909845652,-432.939566,0.00076712,120]
[321147269,1711909845661,-432.939566,0.00076712,120]
[321147271,1711909845671,-432.939566,0.00076712,120]
[321147273,1711909845680,-432.939566,0.00076712,120]
[321147276,1711909845689,-432.939566,0.00076712,120]
[321147278,1711909845699,-500.0,0.00076712,120]
[321147280,1711909845708,-432.939566,0.00076712,120]
[321147282,1711909845717,-432.939566,0.00076712,120]
[321147283,1711909845726,-432.939566,0.00076712,120]
[321147285,1711909845736,-500.0,0.00076712,120]
[321147287,1711909845745,-432.939566,0.00076712,120]
[321147289,1711909845754,-432.939557,0.00076712,120]
[321147291,1711909845764,-225.30810761,0.00076712,120]
[321147294,1711909845773,-503.08534758,0.00076712,120]
[321147296,1711909845782,-500.0,0.00076712,120]
[321147297,1711909845791,-434.2497523,0.00076712,120]
[321147299,1711909845801,-500.0,0.00076712,120]
[321147301,1711909845810,-500.0,0.00076712,2]
[321147305,1711909845820,-505.51060483,0.00076712,120]
[321147307,1711909845829,-499.55755534,0.00076712,120]
[321147309,1711909845839,-500.0,0.00076712,120]
[321147310,1711909845849,-500.63068825,0.00076712,120]
[321147311,1711909845857,-500.0,0.00076712,120]
[321147312,1711909845866,-500.0,0.00076712,120]
[321147313,1711909845875,-169.258562,0.00076712,120]
[321147315,1711909845884,-499.80000001,0.00076712,120]
[321147317,1711909845893,-500.55469769,0.00076712,20]
[321147319,1711909845902,-500.0,0.00076712,120]
[321147320,1711909845911,-500.0,0.00076712,120]
[321147322,1711909845920,-500.0,0.00076712,120]
[321147325,1711909845929,-500.0,0.00076712,120]
[321147328,1711909845939,-183.64054975,0.00076712,120]
[321147330,1711909845948,-500.0,0.00076712,120]
[321147331,1711909845957,-500.0,0.00076712,120]
[321147333,1711909845966,-500.0,0.00076712,120]
[321147335,1711909845975,-500.0,0.00076712,120]
[321147337,1711909845983,-500.0,0.00076712,120]
[321147339,1711909845992,-500.0,0.00076712,120]
[321147340,1711909846001,-500.0,0.00076712,120]
[321147341,1711909846010,-500.0,0.00076712,120]
[321147342,1711909846019,-500.0,0.00076712,120]
[321147343,1711909846027,-500.0,0.00076712,120]
[321147344,1711909846040,-1000.0,0.00076712,120]
[321147345,1711909846049,-500.0,0.00076712,120]
[321147346,1711909846057,-502.19564297,0.00076712,120]
[321147347,1711909846066,-500.63252533,0.00076712,120]
[321147348,1711909846075,-500.0,0.00076712,120]
[321147349,1711909846085,-549.23408592,0.00076712,120]
[321147350,1711909846094,-520.9721339,0.00076712,120]
[321147351,1711909846103,-500.0,0.00076712,120]
[321147352,1711909846112,-500.0,0.00076712,120]
[321147353,1711909846121,-500.0,0.00076712,120]
[321147354,1711909846130,-500.28198408,0.00076712,120]
[321147355,1711909846138,-501.15152073,0.00076712,120]
[321147356,1711909846147,-500.0,0.00076712,120]
[321147357,1711909846156,-500.0,0.00076712,120]
[321147358,1711909846165,-515.60592498,0.00076712,120]
[321147359,1711909846174,-548.84457098,0.00076712,120]
[321147360,1711909846183,-500.0,0.00076712,120]
[321147361,1711909846192,-500.0,0.00076712,120]
[321147362,1711909846201,-204.60381271,0.00076712,120]
[321147363,1711909846210,-500.0,0.00076712,120]
[321147364,1711909846219,-680.130651,0.00076712,10]
[321147365,1711909846228,-680.130651,0.00076712,10]
[321147366,1711909846237,-680.130651,0.00076712,10]
[321147367,1711909846246,-680.130651,0.00076712,10]
[321147368,1711909846255,-680.130651,0.00076712,10]
[321147369,1711909846264,-680.130651,0.00076712,10]
[321147370,1711909846274,-680.130651,0.00076712,10]
[321147371,1711909846283,-680.130651,0.00076712,10]
[321147372,1711909846292,-680.130651,0.00076712,10]
[321147373,1711909846302,-680.130651,0.00076712,10]
[321147374,1711909846311,-680.130651,0.00076712,10]
[321147375,1711909846320,-680.130648,0.00076712,10]
[321147376,1711909846330,-500.0,0.00076712,120]
[321147377,1711909846340,-500.0,0.00076712,120]
[321147378,1711909846349,-500.0,0.00076712,120]
[321147379,1711909846359,-2499.96,0.00076712,120]
[321147380,1711909846368,-500.0,0.00076712,120]
[321147381,1711909846377,-500.0,0.00076712,120]
[321147382,1711909846386,-499.66743137,0.00076712,120]
[321147383,1711909846396,-500.0,0.00076712,120]
[321147384,1711909846405,-500.0,0.00076712,120]
[321147385,1711909846415,-153.065987,0.00076712,120]
[321147386,1711909846424,-500.0,0.00076712,120]
[321147387,1711909846433,-500.0,0.00076712,120]
[321147388,1711909846514,-537.87755231,0.00076712,120]
[321147389,1711909846523,-500.0,0.00076712,120]
[321147390,1711909846532,-500.0,0.00076712,120]
[321147391,1711909846542,-800.0,0.00076712,120]
[321147392,1711909846551,-500.0,0.00076712,120]
[321147393,1711909846560,-516.73,0.00076712,120]
[321147394,1711909846569,-500.0,0.00076712,120]
[321147395,1711909846580,-500.0,0.00076712,120]
[321147396,1711909846590,-500.0,0.00076712,120]
[321147397,1711909846599,-500.0,0.00076712,120]
[321147398,1711909846608,-500.0,0.00076712,120]
[321147399,1711909846617,-500.0,0.00076712,120]
[321147400,1711909846626,-200.729948,0.00076712,120]
[321147401,1711909846636,-200.729948,0.00076712,120]
[321147402,1711909846646,-200.729948,0.00076712,120]
[321147403,1711909846656,-200.729948,0.00076712,120]
[321147404,1711909846666,-200.729948,0.00076712,120]
[321147405,1711909846675,-200.729948,0.00076712,120]
[321147406,1711909846684,-200.729948,0.00076712,120]
[321147407,1711909846693,-500.0,0.00076712,120]
[321147408,1711909846702,-200.729948,0.00076712,120]
[321147409,1711909846711,-200.729948,0.00076712,120]
[321147410,1711909846720,-200.729948,0.00076712,120]
[321147411,1711909846729,-200.729948,0.00076712,120]
[321147412,1711909846738,-200.729941,0.00076712,120]
[321147413,1711909846747,-500.0,0.00076712,120]
[321147414,1711909846755,-151.0,0.00076712,120]
[321147415,1711909846764,-500.0,0.00076712,120]
[321147416,1711909846773,-151.0,0.00076712,120]
[321147417,1711909846782,-151.0,0.00076712,120]
[321147418,1711909846791,-151.0,0.00076712,120]
[321147419,1711909846800,-511.16,0.00076712,120]
[321147420,1711909846809,-151.0,0.00076712,120]
[321147421,1711909846819,-151.0,0.00076712,120]
[321147422,1711909846827,-500.0,0.00076712,120]
[321147423,1711909846836,-296.569647,0.00076712,120]
[321147424,1711909846845,-360.41704343,0.00076712,120]
[321147425,1711909846854,-500.0,0.00076712,120]
[321147426,1711909846863,-500.03917753,0.00076712,120]
[321147427,1711909846872,-500.0,0.00076712,120]
[321147428,1711909846881,-500.0,0.00076712,120]
[321147429,1711909846889,-500.0,0.00076712,120]
[321147430,1711909846898,-500.0,0.00076712,120]
[321147431,1711909846907,-500.0,0.00076712,120]
[321147432,1711909846917,-768.09,0.00076712,120]
[321147433,1711909846925,-500.0,0.00076712,120]
[321147434,1711909846934,-500.0,0.00076712,120]
[321147435,1711909846943,-500.0,0.00076712,120]
[321147436,1711909846953,-500.0,0.00076712,120]
[321147437,1711909846961,-500.0,0.00076712,120]
[321147438,1711909846971,-500.0,0.00076712,120]
[321147439,1711909846981,-500.0,0.00076712,120]
[321147440,1711909846989,-500.0,0.00076712,120]
[321147441,1711909846998,-500.0,0.00076712,120]
[321147442,1711909847006,-500.0,0.00076712,120]
[321147443,1711909847015,-500.0,0.00076712,120]
[321147444,1711909847024,-2698.77,0.00076712,90]
[321147445,1711909847034,-500.0,0.00076712,120]
[321147446,1711909847046,-500.0,0.00076712,120]
[321147447,1711909847055,-500.0,0.00076712,120]
[321147448,1711909847064,-503.40924565,0.00076712,120]
[321147449,1711909847073,-500.0,0.00076712,120]
[321147450,1711909847083,-500.0,0.00076712,120]
[321147451,1711909847092,-3000.0,0.00076712,120]
[321147452,1711909847101,-500.0,0.00076712,21]
[321147453,1711909847110,-613.141479,0.00076712,120]
[321147454,1711909847120,-613.141479,0.00076712,120]
[321147455,1711909847130,-613.141479,0.00076712,120]
[321147456,1711909847138,-1459.88,0.00076712,120]
[321147457,1711909847147,-613.141479,0.00076712,120]
[321147458,1711909847157,-613.141479,0.00076712,120]
[321147459,1711909847165,-613.141479,0.00076712,120]
[321147460,1711909847174,-567.820276,0.00076712,120]
[321147461,1711909847184,-613.141479,0.00076712,120]
[321147462,1711909847193,-613.141479,0.00076712,120]
[321147463,1711909847202,-613.141479,0.00076712,120]
[321147464,1711909847211,-613.141479,0.00076712,120]
[321147465,1711909847221,-613.141479,0.00076712,120]
[321147466,1711909847230,-500.0,0.00076712,120]
[321147467,1711909847239,-613.14147,0.00076712,120]
[321147468,1711909847248,-500.0,0.00076712,120]
[321147469,1711909847258,-500.0,0.00076712,120]
[321147470,1711909847267,-500.0,0.00076712,120]
[321147471,1711909847276,-500.0,0.00076712,120]
[321147472,1711909847285,-500.0,0.00076712,120]
[321147473,1711909847294,-500.0,0.00076712,2]
[321147474,1711909847303,-600.0,0.00076712,120]
[321147475,1711909847312,-500.0,0.00076712,120]
[321147476,1711909847322,-500.0,0.00076712,120]
[321147477,1711909847331,-500.0,0.00076712,120]
[321147478,1711909847340,-500.0,0.00076712,120]
[321147479,1711909847349,-189.102796,0.00076712,120]
[321147480,1711909847358,-189.102796,0.00076712,120]
[321147481,1711909847367,-189.102796,0.00076712,120]
[321147482,1711909847376,-189.102796,0.00076712,120]
[321147483,1711909847385,-189.102796,0.00076712,120]
[321147484,1711909847395,-189.102796,0.00076712,120]
[321147485,1711909847404,-189.102796,0.00076712,120]
[321147486,1711909847412,-189.102796,0.00076712,120]
[321147487,1711909847422,-189.102796,0.00076712,120]
[321147488,1711909847431,-189.102796,0.00076712,120]
[321147489,1711909847441,-189.102796,0.00076712,120]
[321147490,1711909847451,-189.102797,0.00076712,120]
[321147491,1711909847460,-500.0,0.00076712,120]
[321147492,1711909847470,-500.0,0.00076712,120]
[321147493,1711909847479,-338.33251589,0.00076712,120]
[321147494,1711909847488,-500.0,0.00076712,120]
[321147495,1711909847498,-369.02794362,0.00076712,120]
[321147496,1711909847507,-500.0,0.00076712,120]
[321147497,1711909847517,-500.0,0.00076712,120]
[321147498,1711909847526,-504.63242417,0.00076712,120]
[321147499,1711909847536,-500.0,0.00076712,120]
[321147500,1711909847545,-500.0,0.00076712,120]
[321147501,1711909847555,-500.0,0.00076712,60]
[321147502,1711909847564,-500.0,0.00076712,120]
[321147503,1711909847573,-500.0,0.00076712,120]
[321147504,1711909847583,-151.0,0.00076712,120]
[321147505,1711909847591,-1106.0,0.00076795,60]
[321147506,1711909847601,-500.0,0.00076986,120]
[321147507,1711909847611,-575.79778352,0.00076986,120]
[321147508,1711909847620,-500.0,0.00076986,120]
[321147509,1711909847630,-500.0,0.00076986,120]
[321147510,1711909847639,-500.0,0.00076986,120]
[321147511,1711909847648,-151.0,0.00076986,120]
[321147512,1711909847657,-829.66,0.00076986,120]
[321147513,1711909847666,-3524.89,0.00076986,120]
[321147514,1711909847675,-300.16387944,0.00076986,120]
[321147515,1711909847684,-500.0,0.00076986,120]
[321147516,1711909847693,-500.0,0.00076986,120]
[321147517,1711909847702,-500.0,0.00076986,120]
[321147518,1711909847712,-512.59232313,0.00076986,120]
[321147519,1711909847721,-500.0,0.00076986,120]
[321147520,1711909847730,-504.74546271,0.00076986,120]
[321147521,1711909847739,-500.0,0.00076986,120]
[321147522,1711909847748,-500.0,0.00076986,120]
[321147523,1711909847757,-1776.86,0.00076986,120]
[321147524,1711909847766,-500.0,0.00076986,120]
[321147525,1711909847775,-505.63965814,0.00076986,120]
[321147526,1711909847784,-500.0,0.00076986,120]
[321147527,1711909847794,-633.81464105,0.00076986,120]
[321147528,1711909847803,-502.83483752,0.00076986,120]
[321147529,1711909847812,-500.0,0.00076986,120]
[321147530,1711909847822,-500.0,0.00076986,120]
[321147531,1711909847831,-504.08935514,0.00076986,120]
[321147532,1711909847840,-502.65601294,0.00076986,120]
[321147533,1711909847849,-500.0,0.00076986,120]
[321147534,1711909847858,-500.0,0.00076986,120]
[321147535,1711909847867,-500.0,0.00076986,120]
[321147536,1711909847876,-500.0,0.00076986,120]
[321147537,1711909847885,-500.0,0.00076986,120]
[321147538,1711909847894,-503.7556498,0.00076986,120]
[321147539,1711909847903,-500.0,0.00076986,120]
[321147540,1711909847912,-500.0,0.00076986,120]
[321147541,1711909847921,-500.0,0.00076986,120]
[321147542,1711909847930,-569.74,0.00076986,120]
[321147543,1711909847939,-500.0,0.00076986,120]
[321147544,1711909847948,-500.0,0.00076986,120]
[321147545,1711909847958,-500.0,0.00076986,120]
[321147546,1711909847968,-500.0,0.00076986,120]
[321147547,1711909847977,-500.0,0.00076986,120]
[321147548,1711909847986,-500.0,0.00076986,120]
[321147549,1711909847995,-500.0,0.00076986,120]
[321147550,1711909848005,-500.0,0.00076986,120]
[321147551,1711909848014,-500.0,0.00076986,120]
[321147552,1711909848023,-500.0,0.00076986,2]
[321147553,1711909848036,-500.0,0.00076986,120]
[321147554,1711909848045,-500.0,0.00076986,120]
[321147555,1711909848054,-500.0,0.00076986,120]
[321147556,1711909848063,-500.0,0.00076986,120]
[321147557,1711909848072,-500.0,0.00076986,120]
[321147558,1711909848082,-500.0,0.00076986,120]
[321147559,1711909848091,-606.20535946,0.00076986,120]
[321147560,1711909848100,-500.74483012,0.00076986,120]
[321147561,1711909848109,-500.0,0.00076986,120]
[321147562,1711909848118,-429.655204,0.00076986,120]
[321147563,1711909848128,-500.0,0.00076986,120]
[321147564,1711909848137,-500.0,0.00076986,120]
[321147565,1711909848145,-500.0,0.00076986,120]
[321147566,1711909848154,-583.48925063,0.00076986,120]
[321147567,1711909848163,-500.0,0.00076986,120]
[321147568,1711909848172,-500.0,0.00076986,120]
[321147569,1711909848181,-500.0,0.00076986,120]
[321147570,1711909848190,-500.0,0.00076986,120]
[321147571,1711909848199,-500.0,0.00076986,120]
[321147572,1711909848209,-500.0,0.00076986,120]
[321147573,1711909848219,-2499.96,0.00076986,120]
[321147574,1711909848291,-500.0,0.00076986,120]
[321147575,1711909848301,-500.0,0.00076986,120]
[321147576,1711909848310,-500.0,0.00076986,120]
[321147577,1711909848319,-500.0,0.00076986,120]
[321147578,1711909848329,-163.49226545,0.00076986,120]
[321147579,1711909848339,-800.0,0.00076986,120]
[321147580,1711909848348,-516.73,0.00076986,120]
[321147581,1711909848357,-500.0,0.00076986,120]
[321147582,1711909848366,-500.0,0.00076986,120]
[321147583,1711909848375,-500.0,0.00076986,120]
[321147584,1711909848385,-500.0,0.00076986,120]
[321147585,1711909848394,-500.0,0.00076986,120]
[321147586,1711909848403,-500.0,0.00076986,120]
[321147587,1711909848412,-500.0,0.00076986,120]
[321147588,1711909848422,-768.09,0.00076986,120]
[321147589,1711909848431,-500.0,0.00076986,120]
[321147590,1711909848440,-500.0,0.00076986,120]
[321147591,1711909848450,-500.0,0.00076986,120]
[321147592,1711909848459,-500.0,0.00076986,120]
[321147593,1711909848469,-500.0,0.00076986,120]
[321147594,1711909848479,-2698.77,0.00076986,90]
[321147595,1711909848490,-500.0,0.00076986,120]
[321147596,1711909848499,-500.0,0.00076986,120]
[321147597,1711909848508,-3000.0,0.00076986,120]
[321147598,1711909848518,-500.0,0.00076986,21]
[321147599,1711909848527,-1459.88,0.00076986,120]
[321147600,1711909848539,-361.96036281,0.00076986,120]
[321147601,1711909848550,-500.0,0.00076986,120]
[321147602,1711909848560,-500.0,0.00076986,120]
[321147603,1711909848569,-600.75754339,0.00076986,120]
[321147604,1711909848578,-500.0,0.00076986,120]
[321147605,1711909848587,-500.0,0.00076986,120]
[321147606,1711909848596,-500.0,0.00076986,120]
[321147607,1711909848605,-500.0,0.00076986,120]
[321147608,1711909848615,-500.0,0.00076986,120]
[321147609,1711909848626,-500.0,0.00076986,120]
[321147610,1711909848635,-500.0,0.00076986,120]
[321147611,1711909848643,-629.37,0.00076986,60]
[321147612,1711909848652,-500.0,0.00076986,120]
[321147613,1711909848661,-500.0,0.0007726,120]
[321147614,1711909848670,-500.0,0.0007726,120]
[321147615,1711909848679,-500.0,0.0007726,120]
[321147616,1711909848688,-330.79,0.0007726,120]
[321147617,1711909848697,-151.0,0.0007726,120]
[321147618,1711909848706,-829.66,0.0007726,120]
[321147619,1711909848715,-3524.89,0.0007726,120]
[321147620,1711909848724,-500.0,0.0007726,120]
[321147621,1711909848735,-500.0,0.0007726,120]
[321147622,1711909848745,-264.3924487,0.0007726,120]
[321147623,1711909848755,-500.0,0.0007726,120]
[321147624,1711909848765,-500.0,0.0007726,120]
[321147625,1711909848774,-1776.86,0.0007726,120]
[321147626,1711909848783,-303.27,0.0007726,120]
[321147627,1711909848791,-500.0,0.0007726,120]
[321147628,1711909848801,-345.79,0.0007726,120]
[321147629,1711909848810,-500.0,0.0007726,120]
[321147630,1711909848819,-500.0,0.0007726,120]
[321147631,1711909848829,-500.0,0.0007726,120]
[321147632,1711909848838,-500.0,0.0007726,120]
[321147633,1711909848847,-500.0,0.0007726,120]
[321147634,1711909848858,-495.35510937,0.0007726,120]
[321147635,1711909848867,-500.0,0.0007726,120]
[321147636,1711909848875,-500.0,0.0007726,120]
[321147637,1711909848884,-499.09595307,0.0007726,120]
[321147638,1711909848893,-500.0,0.0007726,120]
[321147639,1711909848902,-500.0,0.0007726,120]
[321147640,1711909848911,-500.0,0.0007726,120]
[321147641,1711909848920,-500.0,0.0007726,120]
[321147642,1711909848929,-500.0,0.0007726,120]
[321147643,1711909848939,-500.0,0.0007726,2]
[321147644,1711909848947,-500.0,0.0007726,120]
[321147645,1711909848956,-500.0,0.0007726,120]
[321147646,1711909848966,-500.0,0.0007726,120]
[321147647,1711909848974,-500.0,0.0007726,120]
[321147648,1711909848983,-500.0,0.0007726,120]
[321147649,1711909848992,-500.0,0.0007726,120]
[321147650,1711909849001,-500.0,0.0007726,120]
[321147651,1711909849010,-500.0,0.0007726,120]
[321147652,1711909849019,-500.0,0.0007726,120]
[321147653,1711909849028,-500.0,0.0007726,120]
[321147654,1711909849040,-500.0,0.0007726,120]
[321147655,1711909849050,-490.00000002,0.0007726,120]
[321147656,1711909849059,-500.0,0.0007726,120]
[321147657,1711909849068,-500.0,0.0007726,120]
[321147658,1711909849077,-2499.96,0.0007726,120]
[321147659,1711909849086,-500.0,0.0007726,120]
[321147660,1711909849094,-500.0,0.0007726,120]
[321147661,1711909849103,-500.0,0.0007726,120]
[321147662,1711909849114,-500.0,0.0007726,120]
[321147663,1711909849123,-459.36959037,0.0007726,120]
[321147664,1711909849143,-340.63040963,0.0007726,120]
[321147665,1711909849152,-516.73,0.0007726,120]
[321147666,1711909849162,-500.0,0.0007726,120]
[321147667,1711909849171,-385.13959037,0.0007726,120]
[321147668,1711909849374,-114.86040963,0.0007726,120]
[321147669,1711909849383,-500.0,0.0007726,120]
[321147670,1711909849393,-500.0,0.0007726,120]
[321147671,1711909849402,-301.20838031,0.0007726,120]
[321147674,1711910494112,-666.51260914,0.00039529,2]
[321147675,1711910494135,-3033.48739086,0.00039629,2]
[321147677,1711910767788,399.95902454,0.00037529,2]
[321147678,1711910843147,-495.61312408,0.00039629,2]
[321147679,1711910845862,-3426.00672701,0.00039629,2]
[321147680,1711910845898,-174.666667,0.0004,2]
[321147681,1711910911735,199.61312408,0.00039529,2]
[321147682,1711910951136,-253.11620615,0.00040029,2]
[321147683,1711910951157,-399.95902454,0.00042529,2]
[321147684,1711910951178,-399.95902454,0.00047529,2]
[321147685,1711910951197,-166.666666,0.00054529,2]
[321147686,1711910951218,-166.666666,0.00056016,2]
[321147687,1711910951240,-340.96574477,0.00056846,2]
[321147688,1711910954126,-1432.88145073,0.00056846,2]
[321147689,1711910954146,-502.5718756,0.00056938,2]
[321147690,1711910954166,-166.666666,0.00057502,2]
[321147691,1711910954185,-1640.0,0.00057644,120]
[321147692,1711910954207,-500.0,0.00057944,120]
[321147693,1711910954229,-500.0,0.00057944,120]
[321147694,1711910954252,-500.0,0.00057944,120]
[321147695,1711910954275,-500.0,0.00057944,120]
[321147696,1711910954296,-500.0,0.00057944,120]
[321147697,1711910954318,-500.0,0.00057944,120]
[321147698,1711910954339,-500.0,0.00057944,120]
[321147699,1711910954362,-500.0,0.00057944,120]
[321147700,1711910954383,-169.07130715,0.00057944,120]
[321147701,1711910954405,-396.39215654,0.00057944,2]
[321147702,1711910954425,-240.0,0.00057945,2]
[321147703,1711910954446,-3568.29048888,0.00057945,2]
[321147836,1711911038628,-14962.85013775,0.00057945,2]
[321147838,1711911038639,-3103.21860215,0.00057945,2]
[321147840,1711911038650,-553.92313156,0.00057945,2]
[321147843,1711911038672,-23513.38965357,0.00057945,2]
[321147845,1711911038681,-6753.23105326,0.00057945,4]
[321147847,1711911038690,-166.666666,0.00058989,2]
[321147849,1711911038700,-713.835375,0.00059649,30]
[321147851,1711911038709,-8971.64276006,0.00059758,2]
[321147855,1711911038721,-517.70092301,0.00059758,2]
[321147858,1711911038731,-2888.57182253,0.00059758,2]
[321148174,1711911046084,-2251.68122674,0.00059758,2]
[321148178,1711911046148,-500.0,0.00059758,2]
[321148180,1711911046211,-1180.91483406,0.00059758,2]
[321148182,1711911046601,-2825.13557193,0.00059758,2]
[321148183,1711911046613,-1426.79748874,0.00059758,2]
[321148196,1711911067526,155.00620025,0.00033,4]
[321148204,1711911092590,1152.09533296,0.00039929,2]
[321148223,1711911271130,651.04526375,0.00037,30]
[321148224,1711911272108,3752.84414885,0.00035,2]
[321148225,1711911273702,10217.71509075,0.00035,2]
[321148226,1711911274087,719.2372482,0.00035,2]
[321148228,1711911276665,657.29811272,0.0004,30]
[321148229,1711911283876,174.641098,0.0004,2]
[321148230,1711911344258,274.39075608,0.0004,4]
[321148231,1711911362204,213.83893078,0.0004,4]
[321148232,1711911382343,213.83893078,0.0004,4]
[321148233,1711911400219,155.00310006,0.0004,4]
[321148234,1711911414215,155.00310006,0.0004,4]
[321148235,1711911434219,155.00310006,0.0004,4]
[321148236,1711911456218,155.00310006,0.0004,4]
[321148237,1711911472299,12545.40579943,0.0004,4]
[321148238,1711911474213,155.00310006,0.0004,4]
[321148239,1711911496221,155.00310006,0.0004,4]
[321148240,1711911518232,181.26609919,0.0004,4]
[321148241,1711911528213,289.55688863,0.000398,4]
[321148242,1711911579906,2842.57880921,0.0004,5]
[321148243,1711911608770,828.64566107,0.0003586,2]
[321148244,1711911609896,630.43228305,0.00037653,2]
[321148245,1711911610999,620.52161415,0.00039536,2]
[321148269,1711911644808,926.10923527,0.00039536,4]
[321148275,1711911664838,376.57936202,0.00039536,4]
[321148276,1711911813348,158.948034,0.0004,2]
[321148277,1711911973246,573.42730849,0.000379,2]
[321148279,1711912047120,-1320.86416535,0.0004075,2]
[321148408,1711912238566,-651.06500393,0.0004075,2]
[321148410,1711912238576,-620.02608071,0.00041512,15]
[321148412,1711912238585,-573.42730849,0.000429,2]
[321148414,1711912238595,-3932.55967175,0.00043459,2]
[321148416,1711912238605,-463.23014524,0.00049999,120]
[321148418,1711912238614,-500.0,0.00049999,120]
[321148420,1711912238623,-326.82560329,0.00049999,120]
[321148422,1711912238635,-173.17439671,0.00049999,120]
[321148424,1711912238644,-500.0,0.00049999,120]
[321148425,1711912238653,-500.0,0.00049999,120]
[321148426,1711912238662,-493.79281121,0.00049999,120]
[321148427,1711912238675,-500.0,0.00049999,120]
[321148428,1711912238684,-475.75030489,0.00049999,120]
[321148429,1711912238693,-191.0,0.0005,2]
[321148430,1711912238701,-500.0,0.0005,2]
[321148431,1711912238710,-1378.81595675,0.0005,2]
[321148432,1711912238722,-1307.22129593,0.0005,2]
[321148433,1711912238737,-29864.09824544,0.0005,2]
[321148434,1711912238748,-28810.79490776,0.0005,2]
[321148942,1711912243574,-495.22789991,0.0005,2]
[321148949,1711912243629,-2612.23892814,0.0005,2]
[321149243,1711912246454,-1695.2,0.0005,2]
[321149245,1711912246467,-2377.64212774,0.0005,2]
[321151034,1711912264560,11424.47511112,0.00035,2]
[321151352,1711912309925,1010.41600519,0.00035,4]
[321151353,1711912321703,154.84515485,0.000315,4]
[321151354,1711912325884,1010.41600519,0.00035,4]
[321151355,1711912339614,154.84515485,0.000315,4]
[321151356,1711912341929,1010.41600519,0.00035,4]
[321151357,1711912355881,1010.41600519,0.000315,4]
[321151358,1711912357622,154.84515485,0.0002835,2]
[321151359,1711912366326,169.3375056,0.0004,2]
[321151360,1711912375614,248.81580736,0.0002835,2]
[321151361,1711912375886,379.12278507,0.000315,4]
[321151363,1711912652854,1574.02614699,0.00040795,10]
[321151365,1711912722712,1000.0,0.00041,2]
[321151366,1711912748386,313.97385301,0.00041,2]
[321151367,1711912918143,161.818688,0.0004,2]
[321151368,1711912994558,2809.64428066,0.0004,5]
[321151369,1711913178398,1282.59324113,0.000389,2]
[321151370,1711913235137,-161.21088488,0.00041,2]